Service Area,Expense Type,Date,Transaction Number,Amount,Supplier
Development Control,Agency Staff,2010-04-13,5000071857,881.25,Hays Specialist Recruitment Ltd
Development Control,Agency Staff,2010-04-13,5000071858,887.13,Hays Specialist Recruitment Ltd
Development Control,Agency Staff,2010-04-22,5000073706,940.0,Hays Specialist Recruitment Ltd
Development Control,Consultants Fees,2010-04-23,5000074075,750.0,Cowan Consultancy Ltd
Development Control,Agency Staff,2010-04-23,5000074284,740.25,Hays Specialist Recruitment Ltd
Development Control,Agency Staff,2010-04-27,5000074670,752.0,Hays Specialist Recruitment Ltd
Development Control,Agency Staff,2010-04-27,5000074742,898.88,Hays Specialist Recruitment Ltd
Development Control,Agency Staff,2010-05-04,5000075768,897.7,Hays Specialist Recruitment Ltd
Development Control,Consultants Fees,2010-05-07,5000076681,750.0,Symonds & Sampson
Development Control,Agency Staff,2010-05-24,5000080013,528.75,Hays Specialist Recruitment Ltd
Development Control,Agency Staff,2010-05-24,5000080014,916.5,Hays Specialist Recruitment Ltd
Development Control,Agency Staff,2010-06-03,5000081974,558.13,Hays Specialist Recruitment Ltd
Development Control,Advertising & Public,2010-06-14,5000084068,551.55,Alexander Advertising (Int) Ltd
Development Control,Consultants Fees,2010-06-15,5000084199,2880.0,Marina Projects Ltd
Development Control,Agency Staff,2010-06-28,5000086873,890.65,Hays Specialist Recruitment Ltd
Development Control,Advertising & Public,2010-06-28,5000086875,651.4,Alexander Advertising (Int) Ltd
Development Control,Agency Staff,2010-06-30,5000087434,744.95,Hays Specialist Recruitment Ltd
Development Control,Advertising & Public,2010-07-26,5000092479,651.4,Alexander Advertising (Int) Ltd
Development Control,Advertising & Public,2010-08-11,5000095532,542.04,Alexander Advertising (Int) Ltd
Development Control,Advertising & Public,2010-08-11,5000095533,670.41,Alexander Advertising (Int) Ltd
Development Control,Agency Staff,2010-08-12,5000095825,916.5,Hays Specialist Recruitment Ltd
Development Control,Agency Staff,2010-08-12,5000095783,916.5,Hays Specialist Recruitment Ltd
Development Control,Agency Staff,2010-08-12,5000095754,722.63,Hays Specialist Recruitment Ltd
Development Control,Computer Maintenance,2010-08-17,5105606862,586.88,Cadline Ltd
Development Control,Advertising & Public,2010-08-18,5000096698,570.57,Alexander Advertising (Int) Ltd
Development Control,Travel Expenses,2010-08-18,1900215963,500.6,Redacted Personal Data
Development Control,Advertising & Public,2010-08-24,5000097646,756.0,Alexander Advertising (Int) Ltd
Development Control,Agency Staff,2010-08-31,5000098605,1087.44,Hays Specialist Recruitment Ltd
Development Control,Agency Staff,2010-08-31,5000098603,1018.61,Hays Specialist Recruitment Ltd
Development Control,Agency Staff,2010-08-31,5000098586,951.75,Hays Specialist Recruitment Ltd
Development Control,Agency Staff,2010-08-31,5000098587,851.88,Hays Specialist Recruitment Ltd
Development Control,Agency Staff,2010-08-31,5000098588,810.75,Hays Specialist Recruitment Ltd
Development Control,Agency Staff,2010-09-03,5000099371,957.63,Hays Specialist Recruitment Ltd
Development Control,Agency Staff,2010-09-09,5000100540,981.13,Hays Specialist Recruitment Ltd
Development Control,Consultants Fees,2010-09-13,5000100815,6484.41,Malcolm Woodruff Ltd
Development Control,Agency Staff,2010-09-23,5000103032,846.0,Hays Specialist Recruitment Ltd
Development Control,Agency Staff,2010-09-23,5000103033,963.5,Hays Specialist Recruitment Ltd
Development Control,Agency Staff,2010-09-23,5000103043,1039.88,Hays Specialist Recruitment Ltd
Development Control,Agency Staff,2010-09-24,5000103266,29937.22,Hays Specialist Recruitment Ltd
Development Control,Agency Staff,2010-09-24,5000103274,1087.44,Hays Specialist Recruitment Ltd
Development Control,Agency Staff,2010-09-24,5000103271,-29937.22,Hays Specialist Recruitment Ltd
Development Control,Train And Conference,2010-09-27,5000103469,3902.0,University Of The West Of England
Development Control,Consultants Fees,2010-10-04,5000104609,-6484.41,Malcolm Woodruff Ltd
Development Control,Agency Staff,2010-10-07,5000105446,1057.5,Hays Specialist Recruitment Ltd
Development Control,Agency Staff,2010-10-07,5000105418,1028.13,Hays Specialist Recruitment Ltd
Development Control,Consultants Fees,2010-10-08,5000105660,1828.0,Urban Vision Partnership Ltd
Development Control,Consultants Fees,2010-10-08,5000105580,7773.43,Urban Vision Partnership Ltd
Development Control,Agency Staff,2010-10-08,5000105659,887.84,Hays Specialist Recruitment Ltd
Development Control,Agency Staff,2010-10-08,5000105658,1053.02,Hays Specialist Recruitment Ltd
Development Control,Agency Staff,2010-10-22,5000108308,1121.85,Hays Specialist Recruitment Ltd
Development Control,Agency Staff,2010-10-22,5000108307,805.25,Hays Specialist Recruitment Ltd
Development Control,Agency Staff,2010-11-01,5000110119,1190.67,Hays Specialist Recruitment Ltd
Development Control,Agency Staff,2010-11-12,5000112174,1190.67,Hays Specialist Recruitment Ltd
Development Control,Agency Staff,2010-11-12,5000112150,1170.03,Hays Specialist Recruitment Ltd
Development Control,Agency Staff,2010-11-15,5000112332,893.0,Hays Specialist Recruitment Ltd
Development Control,Agency Staff,2010-11-15,5000112341,1087.44,Hays Specialist Recruitment Ltd
Development Control,Agency Staff,2010-11-15,5000112398,1204.44,Hays Specialist Recruitment Ltd
Development Control,Agency Staff,2010-11-19,5000113366,1063.38,Hays Specialist Recruitment Ltd
Development Control,Agency Staff,2010-11-23,5000113923,-528.75,Hays Specialist Recruitment Ltd
Development Control,Consultants Fees,2010-11-26,5000114525,800.0,Symonds & Sampson
Development Control,Agency Staff,2010-11-26,5000114500,860.31,Hays Specialist Recruitment Ltd
Development Control,Agency Staff,2010-11-26,5000114501,987.0,Hays Specialist Recruitment Ltd
Development Control,Agency Staff,2010-11-26,5000114506,1190.67,Hays Specialist Recruitment Ltd
Development Control,Agency Staff,2010-11-29,5000114660,1021.08,Hays Specialist Recruitment Ltd
Development Control,Agency Staff,2010-12-09,5000116375,1010.5,Hays Specialist Recruitment Ltd
Development Control,Agency Staff,2010-12-09,5000116376,951.75,Hays Specialist Recruitment Ltd
Development Control,Agency Staff,2010-12-09,5000116377,951.75,Hays Specialist Recruitment Ltd
Development Control,Agency Staff,2011-01-07,5000120202,1238.85,Hays Specialist Recruitment Ltd
Development Control,Agency Staff,2011-01-07,5000120216,1211.32,Hays Specialist Recruitment Ltd
Development Control,Agency Staff,2011-01-07,5000120214,1183.79,Hays Specialist Recruitment Ltd
Development Control,Agency Staff,2011-01-07,5000120199,1156.26,Hays Specialist Recruitment Ltd
Development Control,Agency Staff,2011-01-07,5000120212,743.31,Hays Specialist Recruitment Ltd
Development Control,Agency Staff,2011-01-07,5000120200,736.43,Hays Specialist Recruitment Ltd
Development Control,Publications,2011-01-07,5000120253,795.0,Haymarket Media Group
Development Control,Agency Staff,2011-01-14,5000121654,1010.5,Hays Specialist Recruitment Ltd
Development Control,Agency Staff,2011-01-14,5000121587,998.75,Hays Specialist Recruitment Ltd
Development Control,Agency Staff,2011-01-14,5000121589,987.0,Hays Specialist Recruitment Ltd
Development Control,Agency Staff,2011-01-14,5000121591,552.25,Hays Specialist Recruitment Ltd
Development Control,Agency Staff,2011-01-14,5000121652,-552.25,Hays Specialist Recruitment Ltd
Development Control,Advertising & Public,2011-01-20,5000122535,523.02,Alexander Advertising (Int) Ltd
Development Control,Publications,2011-01-21,5000122685,1838.0,Sweet & Maxwell Ltd
Development Control,Agency Staff,2011-01-21,5000122697,1018.61,Hays Specialist Recruitment Ltd
Development Control,Consultants Fees,2011-01-24,5000122879,5500.0,Redacted Personal Data
Development Control,Consultants Fees,2011-01-24,5000122958,2000.0,Gray's Inn Square Chambers Ltd
Development Control,Consultants Fees,2011-01-24,5000122960,1370.0,County Developments Uk Ltd
Development Control,Consultants Fees,2011-02-01,5000124287,6484.41,Malcolm Woodruff Ltd
Development Control,Agency Staff,2011-02-14,5000126789,-1190.67,Hays Specialist Recruitment Ltd
Development Control,Agency Staff,2011-02-18,5000127968,869.5,Hays Specialist Recruitment Ltd
Development Control,Agency Staff,2011-02-18,5000127964,1004.63,Hays Specialist Recruitment Ltd
Development Control,Advertising & Public,2011-03-09,5000131168,513.94,Alexander Advertising (Int) Ltd
Development Control,Hire Of Facilities,2011-03-21,5000132854,5980.0,Cowes Yacht Haven Ltd
Development Control,Consultants Fees,2011-03-30,5000134731,4000.0,Savills (L&P) Limited
Development Control,Consultants Fees,2011-03-30,5000134557,4000.0,Savills (L&P) Limited
Development Control,Consultants Fees,2011-03-31,5000135379,-4000.0,Savills (L&P) Limited
Development Control,Consultants Fees,2011-04-04,5000135630,800.0,Symonds & Sampson
Development Control,Consultants Fees,2011-04-15,5000137492,800.0,Symonds & Sampson
Development Control,Consultants Fees,2011-04-15,5000137490,4850.0,Redacted Personal Data
Development Control,Advertising & Public,2011-04-18,5000137544,724.81,Alexander Advertising (Int) Ltd
Development Control,Advertising & Public,2011-04-18,5000137547,558.3,Alexander Advertising (Int) Ltd
Development Control,Consultants Fees,2011-04-20,5000138132,6000.0,R J & D E Billings Limited
Development Control,Hire Of Facilities,2011-05-16,5000141371,648.0,Cowes Yacht Haven Ltd
Development Control,Hire Of Facilities,2011-05-16,5000141371,648.0,Cowes Yacht Haven Ltd
Development Control,Hire Of Facilities,2011-05-16,5000141371,648.0,Cowes Yacht Haven Ltd
Development Control,Advertising & Public,2011-07-21,5000151384,587.68,Alexander Advertising (Int) Ltd
Development Control,Consultants Fees,2011-08-08,5000153187,35500.0,Gray's Inn Square Chambers Ltd
Development Control,Consultants Fees,2011-08-11,5000153533,-35500.0,Gray's Inn Square Chambers Ltd
Development Control,Consultants Fees,2011-08-11,5105680015,-1000.0,Gray's Inn Square Chambers Ltd
Development Control,Consultants Fees,2011-08-11,5000153548,36500.0,Gray's Inn Square Chambers Ltd
Development Control,Consultants Fees,2011-08-15,5105680538,623.75,Cadline Ltd
Development Control,Consultants Fees,2011-09-19,5000159301,880.0,Symonds & Sampson
Development Control,Consultants Fees,2011-10-26,1900418554,800.0,A M Structures Ltd
Development Control,Professional Service,2011-10-31,5105695600,-1236.39,Cowan Consultancy Ltd
Development Control,Consultants Fees,2011-11-14,5000166638,3780.0,Redacted Personal Data
Development Control,Legal Fees   Other P,2011-11-21,5000167980,2875.0,Ken Parke Planning Consultants Ltd
Development Control,Client Expenses,2011-11-21,5000167980,5800.8,Ken Parke Planning Consultants Ltd
Development Control,Consultants Fees,2011-12-19,5000172730,785.0,Campbell Reith Hill Llp
Development Control,Sundry Office Expenses,2012-01-10,5000175113,875.0,Haymarket Publishing Services Ltd
Development Control,Professional Subscriptions,2012-02-03,5000178324,515.0,Sweet & Maxwell Ltd
Development Control,Professional Subscriptions,2012-02-03,5000178324,2184.0,Sweet & Maxwell Ltd
Development Control,Consultants Fees,2012-02-23,5000182013,942.0,Campbell Reith Hill Llp
Development Control,Consultants Fees,2012-02-23,5000181841,-785.0,Campbell Reith Hill Llp
Development Control,Consultants Fees,2012-02-23,5000182034,3600.0,Opus International Consultants Uk
Development Control,Consultants Fees,2012-03-22,5000186679,5990.0,Enplan Uk Ltd
